Cogmind - Beta 12 @@@ ROGUE MODE // 2023.10.14 @ 19:10:23 Player: Lulu Result: Destroyed by G-47 Trooper with Particle Gun Performance ------------- Evolutions (0) 0 Regions Visited (2) 400 Robots Destroyed (5) 25 Value Destroyed (90) 90 Prototype IDs (0) 0 Alien Tech Used (0) 0 Bonus (0) 0 TOTAL SCORE: 515 Bonus ------- None Cogmind --------- Core Integrity 0/250 Matter 200/300 Energy 83/100 System Corruption 0% Temperature Cool (9) Movement Core (100) Ox1 Location -10/Mines Parts ------- > --- POWER (1) -------- (None) > --- PROPULSION (2) --- (None) > --- UTILITY (2) ------ Small Storage Unit Structural Scanner > --- WEAPON (2) ------- (None) > --- INVENTORY (8) ---- Ion Engine Light Ion Engine Light Ion Engine Wheel Compact Wheel Flight Unit Utility Shielding Peak State ------------ > --- POWER ------------ Ion Engine > --- PROPULSION ------- Wheel Compact Wheel > --- UTILITY ---------- Small Storage Unit Structural Scanner > --- WEAPON ----------- EM Pulse Gun Medium Laser > --- INVENTORY -------- Ion Engine Light Ion Engine Aluminum Leg Aluminum Leg Light Assault Rifle [Rating: 7] Favorites ----------- Power Ion Engine Engine Ion Engine Propulsion Compact Wheel Leg Aluminum Leg Wheel Compact Wheel Utility Small Storage Unit Device Structural Scanner Storage Small Storage Unit Weapon Light Assault Rifle Energy Gun Medium Laser Ballistic Gun Light Assault Rifle Launcher Grenade Launcher Special Weapon Mining Laser Build | -11 -10 -10 ------- Run | Jun Mat Min Slots Evolved . | . . . Power . | . . . Propulsion . | . . . Utility . | . . . Weapon . | . . . Parts Attached 18 | 6 9 3 Power 2 | 1 1 . Engine 2 | 1 1 . Core . | . . . Reactor . | . . . Propulsion 6 | 2 4 . Treads . | . . . Leg 2 | . 2 . Wheel 4 | 2 2 . Hover . | . . . Flight . | . . . Utility 2 | 1 1 . Device 1 | . 1 . Storage 1 | 1 . . Processor . | . . . Hackware . | . . . Protection . | . . . Artifact . | . . . Weapon 8 | 2 3 3 Energy Gun 2 | 2 . . Energy Cannon . | . . . Ballistic Gun 3 | . 2 1 Ballistic Cannon . | . . . Launcher 1 | . . 1 Special Weapon 2 | . 1 1 Impact Weapon . | . . . Slashing Weapon . | . . . Piercing Weapon . | . . . Special Melee Weapon . | . . . Unidentified Prototypes . | . . . Parts Lost 7 | . 3 4 Power 1 | . 1 . Propulsion 1 | . 1 . Utility . | . . . Weapon 5 | . 1 4 Highest Loss Streak 4 | . 3 4 To Critical Strikes . | . . . Average Slot Usage (%) 90 | . 85 92 Engine 12 | . 13 12 Leg 2 | . 6 . Wheel 22 | . 19 24 Device 12 | . 9 14 Storage 14 | . 14 14 Energy Gun 6 | . 16 . Ballistic Gun 9 | . 4 12 Special Weapon 7 | . . 11 Naked Turns . | . . . Heaviest Build 15 | 14 15 15 Greatest Support 26 | 26 26 26 Greatest Overweight (x) 3 | 3 3 2 Average Overweight (x) . | . . . Largest Inventory Capacity 8 | 8 8 8 Average Capacity 7 | 7 8 8 Most Carried 8 | 4 7 8 Average Carried 4 | 2 4 5 Final Capacity 8 | 8 8 8 Final Carried 7 | 4 4 7 Class Distribution -------------------- 100% | Mutant Dominant Class ---------------- Mutant | -10/Materials Mutant | -10/Mines Resources | -11 -10 -10 ----------- Run | Jun Mat Min Matter Collected 269 | 215 33 21 Remotely . | . . . Salvage Created 71 | . 65 6 Parts 8 | . 6 2 Haulers Intercepted . | . . . Recyclers Shooed . | . . . Parts Field Recycled . | . . . Retrieved Matter . | . . . Parts Self-Destructed . | . . . Prevented . | . . . Kills | -11 -10 -10 ------- Run | Jun Mat Min Combat Hostiles Destroyed 4 | . 3 1 Guns 3 | . 3 . AOE 1 | . . 1 Classes Destroyed 3 | . 2 1 Operator 1 | . 1 . Swarmer 3 | . 3 . Grunt 1 | . . 1 Best Kill Streak 2 | . 2 1 Combat Bots Only 2 | . 2 1 Max Kills in Single Turn 1 | . 1 1 Gunslinging . | . . . Exploded 1 | . . 1 Melee . | . . . Uniques/NPCs Destroyed . | . . . Combat | -11 -10 -10 -------- Run | Jun Mat Min Damage Taken 899 | . 613 286 Core 259 | . 154 105 Absorbed by Shields . | . . . Core Remaining (%) 100 | 100 . . Volleys Fired 20 | 1 13 6 Largest 2 | 2 2 1 Hottest 100 | 90 90 100 Shots Fired 32 | 2 24 6 Gun 29 | 2 24 3 Cannon . | . . . Launcher 2 | . . 2 Special 1 | . . 1 Kinetic 6 | . 3 3 Thermal 15 | 1 13 1 Explosive 2 | . . 2 Electromagnetic 9 | 1 8 . Robot Hit Streak 14 | . 14 4 Robot Miss Streak 5 | . 5 1 Penetration Max . | . . . Secondary Targets 3 | . 3 . Max Gunslinging Chain 1 | . 1 . Shots Hit Robots 20 | . 17 3 Core Hits 12 | . 8 4 Critical Kills . | . . . Critical Parts Destroyed . | . . . Critical Strikes . | . . . Melee Attacks . | . . . Impact . | . . . Slashing . | . . . Piercing . | . . . Sneak Attacks . | . . . Combat Hostiles . | . . . Follow-up Attacks . | . . . Damage Inflicted 424 | . 206 218 Guns 216 | . 202 14 Cannons . | . . . Explosions 204 | . . 204 Melee . | . . . Ramming 4 | . 4 . Kinetic 39 | . 25 14 Thermal 208 | . 114 94 Explosive 110 | . . 110 Electromagnetic 63 | . 63 . Impact . | . . . Slashing . | . . . Piercing . | . . . Highest Corruption . | . . . Average Corruption . | . . . Corruption Purged . | . . . Corruption Blocked . | . . . Overload Shots . | . . . Overflow Damage 45 | . . 45 Projectiles . | . . . Explosions 45 | . . 45 Melee . | . . . Knockbacks . | . . . Impact . | . . . Kinetic . | . . . Secondary . | . . . Self-Inflicted Damage 45 | . . 45 Shots 1 | . . 1 Rammed . | . . . Targets Rammed 1 | . 1 . Kicked 1 | . 1 . Crushed . | . . . Highest Temperature 222 | 30 222 24 Average Temperature 67 | 17 81 13 Received Heat Transfer 444 | . 270 174 Siege Activations . | . . . Robots Corrupted . | . . . Combat Hostiles . | . . . Parts Fried . | . . . Impact Corruptions . | . . . Robots Melted . | . . . Combat Hostiles . | . . . Parts Melted . | . . . Heat Transferred 433 | . 333 100 Parts Sabotaged . | . . . Parts Stolen . | . . . Parts Stripped . | . . . Power Chain Reactions . | . . . Missiles Intercepted . | . . . Alert | -11 -10 -10 ------- Run | Jun Mat Min Peak Influence 217 | . 217 168 Initial 84 | . . 84 Average 87 | . 100 96 Maximum Alert Level 1 | . 1 . Low Security (%) 99 | 100 97 100 Level 1 . | . 2 . Level 2 . | . . . Level 3 . | . . . Level 4 . | . . . Level 5 . | . . . High Security . | . . . Max Security . | . . . Squads Dispatched 2 | . 2 . Investigation 1 | . 1 . Extermination . | . . . Reinforcement 1 | . 1 . Assault . | . . . Garrison . | . . . Intercept . | . . . Searches Triggered . | . . . Construction Impeded . | . . . Haulers Reinforced . | . . . Active Scanning Responses . | . . . Cargo Convoy Interrupts . | . . . Stealth | -11 -10 -10 --------- Run | Jun Mat Min Distress Signals 1 | . 1 . Communications Jammed . | . . . Distress Signals . | . . . Times Spotted 20 | . 16 4 Peak Tracking Total 6 | . 6 2 Tactical Retreats 5 | . 4 1 Traps | -11 -10 -10 ------- Run | Jun Mat Min Traps Triggered . | . . . Indirectly . | . . . Trap Hack Attempts . | . . . Triggered . | . . . Disarmed . | . . . Reprogrammed . | . . . Reused . | . . . Traps Extracted . | . . . Installed . | . . . Triggered 1 | . 1 . Machines | -11 -10 -10 ---------- Run | Jun Mat Min Machines Disabled 1 | . . 1 Max in Single Turn 1 | . . 1 Machines Repaired . | . . . Machines Sabotaged . | . . . Overloaded Fab Kills . | . . . Hacking | -11 -10 -10 --------- Run | Jun Mat Min Machines Accessed 3 | . 2 1 Terminals 3 | . 2 1 Fabricators . | . . . Repair Stations . | . . . Recycling Units . | . . . Scanalyzers . | . . . Garrison Access . | . . . Total Hacks 6 | . 3 3 Successful 6 | . 3 3 Failed . | . . . Catastrophic . | . . . Database Lockouts . | . . . Manual 8 | . 5 3 Terminals 6 | . 3 3 Fabricators . | . . . Repair Stations . | . . . Recycling Units . | . . . Scanalyzers . | . . . Garrison Access . | . . . Terminal Hacks 1 | . . 1 Locate Traps 1 | . . 1 Fabricator Hacks . | . . . Repair Station Hacks . | . . . Recycling Unit Hacks . | . . . Scanalyzer . | . . . Garrison Access Hacks . | . . . Unauthorized Hacks 5 | . 3 2 Terminals 5 | . 3 2 Track 2 | . 1 1 Botnet 3 | . 2 1 Fabricators . | . . . Repair Stations . | . . . Recycling Units . | . . . Scanalyzers . | . . . Garrison Access . | . . . Data Cores Recovered . | . . . Used . | . . . Hacking Detections 1 | . 1 . Full Trace Events 1 | . 1 . Feedback Events . | . . . Feedback Blocked . | . . . Robot Schematics Acquired . | . . . Robots Built . | . . . Authchips . | . . . Time . | . . . Total Robot Build Rating . | . . . Part Schematics Acquired . | . . . Parts Built . | . . . Authchips . | . . . Time . | . . . Total Part Build Rating . | . . . Parts Repaired . | . . . Time . | . . . Parts Recycled . | . . . Recycled Matter . | . . . Retrieved Matter . | . . . Retrieved Components . | . . . Parts Scanalyzed . | . . . Part Schematics Acquired . | . . . Parts Damaged . | . . . Bothacking | -11 -10 -10 ------------ Run | Jun Mat Min Used RIF Installer . | . . . Robots Hacked . | . . . Non-combat . | . . . Combat . | . . . Robot Hacks Applied . | . . . Relay Couplers Released . | . . . Fabnet Peak Effective % . | . . . Robots Rewired . | . . . Allies Hacked . | . . . Hacks Repelled . | . . . Allies | -11 -10 -10 -------- Run | Jun Mat Min Total Allies . | . . . Largest Group . | . . . Highest-Rated Group . | . . . Highest-Rated Ally . | . . . Total Orders . | . . . Ally Attacks . | . . . Total Damage . | . . . Kills . | . . . Allies Corrupted . | . . . Allies Melted . | . . . Intel | -11 -10 -10 ------- Run | Jun Mat Min Robot Analysis Total . | . . . Derelict Logs Recovered . | . . . Drone Launches . | . . . Drone Recoveries . | . . . Exploration | -11 -10 -10 ------------- Run | Jun Mat Min Turns Passed 590 | 62 199 329 Spaces Moved 522 | 52 146 324 Core 24 | 12 6 6 Treads . | . . . Legs 16 | . 16 . Wheels 482 | 40 124 318 Hover . | . . . Flight . | . . . Fastest Speed 50 | 50 90 90 Average Speed 92 | 90 98 90 Slowest Speed 200 | 200 200 150 Overloaded Moves . | . . . Propulsion Burnouts . | . . . Robots Hopped . | . . . Cave-ins Triggered . | . . . Exploration Rate (%) 26 | 3 30 46 Regions Visited 2 Branch Regions 1 Pre-discovered Areas . | . . . Known Exits Taken . | . . . Unknown Exits Taken 2 | 1 1 . Scrap Searched 1 | . . 1 Spaces Dug . | . . . Terrain Destroyed 32 | . . 32 Melee . | . . . Projectile . | . . . AOE 32 | . . 32 Terrain Rammed . | . . . Walls Destroyed . | . . . Machines Disabled . | . . . Actions | -11 -10 -10 --------- Run | Jun Mat Min Total 592 | 62 176 354 Wait 15 | . . 15 Move 520 | 51 145 324 Hop . | . . . Pick Up 11 | 4 5 2 Fast Attach 9 | 6 2 1 Attach 7 | . 5 2 Detach 3 | . . 3 Swap 2 | . 2 . Drop 4 | . 3 1 Fire 20 | 1 13 6 Melee . | . . . Ram . | . . . Kick 1 | . 1 . Crush . | . . . Escape Stasis . | . . . Rewire . | . . . Trap . | . . . Miscellaneous . | . . . Route ------- -11/Junkyard -10/Materials -10/Mines History --------- Turn | Location | Event 8 | -11/Junkyard | Discovered new exit (range 16) 63 | -11/Junkyard | Entered Materials 211 | -10/Materials | Core integrity fell below 50% 239 | -10/Materials | Discovered new exit (range 16) 245 | -10/Materials | Lost 3 parts (1p1n1w) 262 | -10/Materials | Entered Mines 316 | -10/Mines | Build established: Mutant 578 | -10/Mines | Core integrity fell below 20% 591 | -10/Mines | Destroyed by G-47 Trooper with Particle Gun Last Messages --------------- 00401_ Found Grenade Launcher. 00401_ Found Utility Shielding. 00401_ Found 21 Matter. 00402_ Acquired 21 matter. 00403_ Acquired Utility Shielding. 00406_ Acquired Grenade Launcher. 00424_ K-01 Serf collects debris. 00514_ K-01 Serf cleans the Pressure Siphon. 00520_ K-01 Serf collects debris. 00547_ Mining Laser destroyed. 00562_ Dropped Lgt. Assault Rifle. 00569_ Plasma Injector explodes. 00569_ Destroyed Lgt. Nuclear Core. 00571_ Critical hit (Burn: +37). 00571_ G-34 Mercenary destroyed. 00573_ Grenade Launcher destroyed. 00579_ Mining Laser destroyed. 00580_ Acquired Lgt. Assault Rifle. 00583_ Critical hit (Burn: +37). 00587_ Lgt. Assault Rifle destroyed. Map ----- +----------------------------------------------------+ | | | | | | | | | | | | | | | | | ???????????????????????????????????????? | | ???????????????????????????????????????? | | ???????????????????????????????????????? | | ???????????????????????????????????????? | | ???????######??????????????????????????? | | ???????######??????????????????????????? | | ???????## ??????????????????????????? | | ???????## ##??????????????????????????? | | ???????## ##??????????????????????????? | | ?######## ##??????????????????????????? | | ######### ##???????????#####??????????? | | ### #### ###???????##########????????? | | # ### #####????###### ######??????? | | ########### # ####??????? | | ######## ;##??????? | | # ! ;##??????? | | ## ## #### ### % ;##??????? | | ## ##### #### ## @ ;##??????? | | # ###### ### ## g ;##??????? | | ##?### # ;##??????? | | ##?### ## ;;##??????? | | ##### ### ###########??????? | | "" #### #### ###########??????? | | "" ##### #### ##???????????????? | | "" ##### ##### ###########??????? | | ####### ####### ###########??###?? | | ######### ### ##?? | | ### ########## """ """ """ ##?? | | ### ######### """ """ "????????? | | ## ######## """ """ "????????? | | # ## ????????? | | #### ??????? | | """" #### ??????? | | """" #########################??????? | | """" #########################??????? | | ###################???????????? | | ## ## ##???????????? | | #### ##???????????? | | ######## ########## ##???????????? | | ######## ######### ##???????????? | | ??????### ##?????## #####????????? | | ??????###### ##?????## #####????????? | +----------------------------------------------------+ Best States ------------- Heat Dissipation 25 Energy Generation 10 Energy Capacity 250 Matter Stores 275 Matter Capacity 300 Sight Range 16 Terrain Scan Density 10 Evasion (%) 42 Item Schematics ----------------- None Robot Schematics ------------------ None Fabricated ------------ Nothing Alien Tech Used ----------------- None Achievements -------------- True Hacker Challenges ------------ None Game ------ Seed ClaymoresStructuralMachine Manual? 0 Play Time 00:20:53 Cumulative 9.9 hours Start 2023.10.14 @ 18:36:51 End 2023.10.14 @ 19:10:23 Sessions 1 Manual Loads 0 Difficulty Rogue Special Mode None Game No. 5 Rogue 5 Adventurer 0 Explorer 0 Win Type - Total 0 Types 0/0/0/0/0/0/0/0/0 Lore% 8 Gallery% 17 Achievement% 14 Wizard Run 0 Options --------- ASCII 0 Keyboard 0 Movement Mouse Keybinds 0 Fullscreen 1 Font 16/Terminus Map View 76x50 Tactical HUD 1 Map Filters NONE Filters NONE Steam 1 RUN: 6c6f8aad-ac8a-4457-811f-6ea774297680